[Event "Titled Tuesday Blitz February 22 Late 2022"]
[White "Karas, Marek"]
[Black "Shahaliyev, Ismayil"]
[WhiteFideId "14928558"]
[BlackFideId "13406388"]
[WhiteElo "2270"]
[BlackElo "2105"]
[Result "1-0"]
[Round "04"]
[TimeControl "180+1"]
[Date "2022.02.23"]
[WhiteClock "0:00:35"]
[BlackClock "0:00:03"]

1. d4 {[%clk 0:02:59]}  Nf6 {[%clk 0:02:59]} 2. Nf3 {[%clk 0:02:59]}  e6 {[%clk 0:02:58]} 3. c4 {[%clk 0:02:58]}  c5 {[%clk 0:02:56]} 4. g3 {[%clk 0:02:57]}  d5 {[%clk 0:02:53]} 5. Bg2 {[%clk 0:02:57]}  Nc6 {[%clk 0:02:53]} 6. O-O {[%clk 0:02:57]}  dxc4 {[%clk 0:02:53]} 7. dxc5 {[%clk 0:02:57]}  Qxd1 {[%clk 0:02:54]} 8. Rxd1 {[%clk 0:02:57]}  Bxc5 {[%clk 0:02:55]} 9. Nbd2 {[%clk 0:02:57]}  c3 {[%clk 0:02:55]} 10. bxc3 {[%clk 0:02:58]}  O-O {[%clk 0:02:55]} 11. Nb3 {[%clk 0:02:58]}  Be7 {[%clk 0:02:55]} 12. Bf4 {[%clk 0:02:55]}  Nd5 {[%clk 0:02:54]} 13. c4 {[%clk 0:02:53]}  Nxf4 {[%clk 0:02:53]} 14. gxf4 {[%clk 0:02:54]}  a5 {[%clk 0:02:49]} 15. Ne5 {[%clk 0:02:53]}  Nxe5 {[%clk 0:02:43]} 16. fxe5 {[%clk 0:02:53]}  a4 {[%clk 0:02:44]} 17. Nd4 {[%clk 0:02:52]}  a3 {[%clk 0:02:10]} 18. Nb5 {[%clk 0:02:39]}  Ra4 {[%clk 0:02:09]} 19. Rac1 {[%clk 0:02:39]}  Bc5 {[%clk 0:01:52]} 20. e3 {[%clk 0:02:35]}  b6 {[%clk 0:01:51]} 21. Nd6 {[%clk 0:02:29]}  Ba6 {[%clk 0:01:50]} 22. Nb5 {[%clk 0:02:19]}  g6 {[%clk 0:01:33]} 23. Rd7 {[%clk 0:02:14]}  Rxc4 {[%clk 0:01:12]} 24. Rxc4 {[%clk 0:02:13]}  Bxb5 {[%clk 0:01:12]} 25. Rxc5 {[%clk 0:02:04]}  bxc5 {[%clk 0:01:13]} 26. Ra7 {[%clk 0:02:02]}  Rd8 {[%clk 0:01:13]} 27. Be4 {[%clk 0:01:53]}  Bd3 {[%clk 0:00:53]} 28. Bxd3 {[%clk 0:01:43]}  Rxd3 {[%clk 0:00:54]} 29. Ra5 {[%clk 0:01:43]}  c4 {[%clk 0:00:43]} 30. Kg2 {[%clk 0:01:34]}  c3 {[%clk 0:00:25]} 31. Rxa3 {[%clk 0:01:31]}  Kg7 {[%clk 0:00:15]} 32. Ra7 {[%clk 0:01:28]}  Rd2 {[%clk 0:00:10]} 33. Rc7 {[%clk 0:01:26]}  Rxa2 {[%clk 0:00:07]} 34. Rxc3 {[%clk 0:01:27]}  g5 {[%clk 0:00:05]} 35. Kg3 {[%clk 0:01:24]}  Kg6 {[%clk 0:00:04]} 36. f4 {[%clk 0:01:16]}  gxf4+ {[%clk 0:00:03]} 37. exf4 {[%clk 0:01:17]}  Kf5 {[%clk 0:00:04]} 38. Rc7 {[%clk 0:01:06]}  Ra3+ {[%clk 0:00:04]} 39. Kg2 {[%clk 0:01:02]}  Kg6 {[%clk 0:00:05]} 40. Rb7 {[%clk 0:00:57]}  h5 {[%clk 0:00:05]} 41. Rc7 {[%clk 0:00:51]}  h4 {[%clk 0:00:06]} 42. Rb7 {[%clk 0:00:51]}  h3+ {[%clk 0:00:06]} 43. Kf2 {[%clk 0:00:51]}  Rc3 {[%clk 0:00:06]} 44. Ra7 {[%clk 0:00:50]}  Rc4 {[%clk 0:00:04]} 45. Kg3 {[%clk 0:00:50]}  Rc3+ {[%clk 0:00:04]} 46. Kg4 {[%clk 0:00:49]}  Rd3 {[%clk 0:00:04]} 47. Ra8 {[%clk 0:00:46]}  Kg7 {[%clk 0:00:04]} 48. Ra2 {[%clk 0:00:44]}  f5+ {[%clk 0:00:02]} 49. Kg5 {[%clk 0:00:41]}  Kf7 {[%clk 0:00:02]} 50. Ra7+ {[%clk 0:00:41]}  Ke8 {[%clk 0:00:02]} 51. Kf6 {[%clk 0:00:42]}  Rd2 {[%clk 0:00:02]} 52. Kxe6 {[%clk 0:00:42]}  Kd8 {[%clk 0:00:02]} 53. Kxf5 {[%clk 0:00:36]}  Rxh2 {[%clk 0:00:03]} 54. Rh7 {[%clk 0:00:37]}  Rh1 {[%clk 0:00:02]} 55. Ke6 {[%clk 0:00:36]}  h2 {[%clk 0:00:03]} 56. f5 {[%clk 0:00:37]}  Kc8 {[%clk 0:00:03]} 57. f6 {[%clk 0:00:37]}  Kd8 {[%clk 0:00:03]} 58. f7 {[%clk 0:00:37]}  Rf1 {[%clk 0:00:03]} 59. Rxh2 {[%clk 0:00:35]} 1-0


[Site "https://www.chess.com"]

[Event "Titled Tuesday Blitz February 22 Late 2022"]
[White "Kim, Sergey"]
[Black "Aigner, Michael"]
[WhiteFideId "13700570"]
[BlackFideId "2017288"]
[WhiteElo "2628"]
[BlackElo "2409"]
[Result "1-0"]
[Round "04"]
[TimeControl "180+1"]
[Date "2022.02.23"]
[WhiteClock "0:01:01"]
[BlackClock "0:00:40"]

1. d4 {[%clk 0:03:00]}  d5 {[%clk 0:02:58]} 2. c4 {[%clk 0:03:00]}  c6 {[%clk 0:02:58]} 3. Nf3 {[%clk 0:03:00]}  Nf6 {[%clk 0:02:58]} 4. Qc2 {[%clk 0:03:00]}  e6 {[%clk 0:02:56]} 5. Nbd2 {[%clk 0:02:59]}  Nbd7 {[%clk 0:02:56]} 6. g3 {[%clk 0:03:00]}  Be7 {[%clk 0:02:54]} 7. Bg2 {[%clk 0:02:59]}  O-O {[%clk 0:02:54]} 8. O-O {[%clk 0:02:58]}  b6 {[%clk 0:02:50]} 9. e4 {[%clk 0:02:55]}  dxe4 {[%clk 0:02:48]} 10. Nxe4 {[%clk 0:02:55]}  Bb7 {[%clk 0:02:40]} 11. Rd1 {[%clk 0:02:53]}  Qc8 {[%clk 0:02:31]} 12. Bf4 {[%clk 0:02:43]}  Nxe4 {[%clk 0:02:27]} 13. Qxe4 {[%clk 0:02:43]}  c5 {[%clk 0:02:27]} 14. d5 {[%clk 0:02:40]}  Nf6 {[%clk 0:02:26]} 15. Qe2 {[%clk 0:02:40]}  Re8 {[%clk 0:02:13]} 16. Bh3 {[%clk 0:02:32]}  Bf8 {[%clk 0:01:55]} 17. Qd3 {[%clk 0:02:15]}  Nxd5 {[%clk 0:01:36]} 18. cxd5 {[%clk 0:02:13]}  Bxd5 {[%clk 0:01:37]} 19. Ng5 {[%clk 0:01:56]}  g6 {[%clk 0:01:34]} 20. Bg2 {[%clk 0:01:54]}  Bxg2 {[%clk 0:01:25]} 21. Kxg2 {[%clk 0:01:54]}  Bg7 {[%clk 0:01:25]} 22. Rab1 {[%clk 0:01:51]}  Qb7+ {[%clk 0:01:17]} 23. Qe4 {[%clk 0:01:48]}  Qa6 {[%clk 0:01:13]} 24. a3 {[%clk 0:01:41]}  Rad8 {[%clk 0:01:12]} 25. h4 {[%clk 0:01:36]}  h6 {[%clk 0:01:10]} 26. Nf3 {[%clk 0:01:35]}  Qb5 {[%clk 0:01:05]} 27. Be5 {[%clk 0:01:27]}  Qb3 {[%clk 0:00:59]} 28. Rxd8 {[%clk 0:01:19]}  Rxd8 {[%clk 0:01:00]} 29. Bxg7 {[%clk 0:01:18]}  Kxg7 {[%clk 0:01:00]} 30. Qe5+ {[%clk 0:01:18]}  Kh7 {[%clk 0:00:59]} 31. Qf6 {[%clk 0:01:15]}  Rd7 {[%clk 0:00:54]} 32. Ne5 {[%clk 0:01:10]}  Qd5+ {[%clk 0:00:49]} 33. Kg1 {[%clk 0:01:06]}  Rc7 {[%clk 0:00:46]} 34. Nxf7 {[%clk 0:01:02]}  Qf5 {[%clk 0:00:40]} 35. Qh8# {[%clk 0:01:01]} 1-0


[Site "https://www.chess.com"]

[Event "Titled Tuesday Blitz February 22 Late 2022"]
[White "Kobalia, Mikhail"]
[Black "Sevian, Samuel"]
[WhiteFideId "4119150"]
[BlackFideId "2040506"]
[WhiteElo "2667"]
[BlackElo "2698"]
[Result "0-1"]
[Round "04"]
[TimeControl "180+1"]
[Date "2022.02.22"]
[WhiteClock "0:00:38"]
[BlackClock "0:02:37"]

1. e4 {[%clk 0:03:00]}  e5 {[%clk 0:03:00]} 2. Nf3 {[%clk 0:03:00]}  Nc6 {[%clk 0:03:00]} 3. Bb5 {[%clk 0:02:59]}  Nf6 {[%clk 0:03:01]} 4. O-O {[%clk 0:02:57]}  Nxe4 {[%clk 0:03:01]} 5. d4 {[%clk 0:02:57]}  Nd6 {[%clk 0:03:02]} 6. Bxc6 {[%clk 0:02:57]}  dxc6 {[%clk 0:03:03]} 7. dxe5 {[%clk 0:02:58]}  Nc4 {[%clk 0:03:03]} 8. Qxd8+ {[%clk 0:02:42]}  Kxd8 {[%clk 0:03:04]} 9. b3 {[%clk 0:02:42]}  Nb6 {[%clk 0:03:04]} 10. c4 {[%clk 0:02:38]}  Ke8 {[%clk 0:03:04]} 11. Nc3 {[%clk 0:02:37]}  a5 {[%clk 0:03:04]} 12. Be3 {[%clk 0:02:29]}  h6 {[%clk 0:03:04]} 13. Rfe1 {[%clk 0:02:27]}  Bb4 {[%clk 0:03:02]} 14. Rec1 {[%clk 0:02:17]}  Bf5 {[%clk 0:03:01]} 15. Nd4 {[%clk 0:02:15]}  Bh7 {[%clk 0:03:01]} 16. Nce2 {[%clk 0:01:40]}  Ba3 {[%clk 0:02:55]} 17. Re1 {[%clk 0:01:36]}  Nd7 {[%clk 0:02:55]} 18. Nf4 {[%clk 0:01:31]}  Nc5 {[%clk 0:02:52]} 19. e6 {[%clk 0:01:28]}  g5 {[%clk 0:02:48]} 20. Nh5 {[%clk 0:01:23]}  Bb2 {[%clk 0:02:40]} 21. Nf6+ {[%clk 0:01:02]}  Ke7 {[%clk 0:02:40]} 22. Nxh7 {[%clk 0:01:02]}  Bxa1 {[%clk 0:02:41]} 23. Bxg5+ {[%clk 0:00:39]}  hxg5 {[%clk 0:02:36]} 24. Nf5+ {[%clk 0:00:38]}  Ke8 {[%clk 0:02:37]} 0-1


[Site "https://www.chess.com"]

[Event "Titled Tuesday Blitz February 22 Late 2022"]
[White "Kollars, Dmitrij"]
[Black "Saraci, Nderim"]
[WhiteFideId "12909572"]
[BlackFideId "6351921"]
[WhiteElo "2584"]
[BlackElo "2573"]
[Result "1-0"]
[Round "04"]
[TimeControl "180+1"]
[Date "2022.02.22"]
[WhiteClock "0:00:16"]
[BlackClock "0:00:04"]

1. e4 {[%clk 0:03:00]}  e5 {[%clk 0:02:58]} 2. Nf3 {[%clk 0:03:00]}  Nc6 {[%clk 0:02:58]} 3. Bb5 {[%clk 0:02:59]}  a6 {[%clk 0:02:59]} 4. Ba4 {[%clk 0:02:59]}  Nf6 {[%clk 0:02:59]} 5. O-O {[%clk 0:02:58]}  d6 {[%clk 0:02:53]} 6. Re1 {[%clk 0:02:50]}  Bd7 {[%clk 0:02:49]} 7. c3 {[%clk 0:02:50]}  g6 {[%clk 0:02:45]} 8. d4 {[%clk 0:02:50]}  b5 {[%clk 0:02:19]} 9. Bc2 {[%clk 0:02:47]}  Bg7 {[%clk 0:02:18]} 10. h3 {[%clk 0:02:39]}  O-O {[%clk 0:02:18]} 11. Be3 {[%clk 0:02:39]}  Re8 {[%clk 0:02:18]} 12. Nbd2 {[%clk 0:02:39]}  Qe7 {[%clk 0:02:11]} 13. a3 {[%clk 0:02:36]}  Qf8 {[%clk 0:02:11]} 14. Rc1 {[%clk 0:02:24]}  Bh6 {[%clk 0:02:11]} 15. Nf1 {[%clk 0:02:12]}  Nh5 {[%clk 0:02:00]} 16. Qd2 {[%clk 0:02:03]}  Bxe3 {[%clk 0:01:57]} 17. Nxe3 {[%clk 0:02:04]}  Nf6 {[%clk 0:01:41]} 18. Nd5 {[%clk 0:02:00]}  Nxd5 {[%clk 0:01:40]} 19. exd5 {[%clk 0:02:01]}  Na5 {[%clk 0:01:40]} 20. dxe5 {[%clk 0:01:53]}  Nc4 {[%clk 0:01:31]} 21. Qd4 {[%clk 0:01:47]}  Nxb2 {[%clk 0:01:28]} 22. e6 {[%clk 0:01:42]}  fxe6 {[%clk 0:01:28]} 23. dxe6 {[%clk 0:01:43]}  Bxe6 {[%clk 0:00:59]} 24. Rxe6 {[%clk 0:01:35]}  Rxe6 {[%clk 0:00:58]} 25. Bb3 {[%clk 0:01:36]}  Nc4 {[%clk 0:00:51]} 26. Bxc4 {[%clk 0:01:35]}  bxc4 {[%clk 0:00:51]} 27. Qxc4 {[%clk 0:01:36]}  Qf7 {[%clk 0:00:48]} 28. Qc6 {[%clk 0:01:19]}  Ree8 {[%clk 0:00:39]} 29. Rb1 {[%clk 0:01:06]}  Rab8 {[%clk 0:00:36]} 30. Rb4 {[%clk 0:00:53]}  a5 {[%clk 0:00:34]} 31. Rh4 {[%clk 0:00:47]}  Re7 {[%clk 0:00:15]} 32. Ng5 {[%clk 0:00:33]}  Qb3 {[%clk 0:00:09]} 33. Kh2 {[%clk 0:00:28]}  Rf8 {[%clk 0:00:07]} 34. f4 {[%clk 0:00:26]}  h5 {[%clk 0:00:04]} 35. a4 {[%clk 0:00:19]}  Rf5 {[%clk 0:00:04]} 36. Nf3 {[%clk 0:00:17]}  Qxa4 {[%clk 0:00:04]} 37. Qxa4 {[%clk 0:00:16]} 1-0


[Site "https://www.chess.com"]

[Event "Titled Tuesday Blitz February 22 Late 2022"]
[White "Le Goff, Ronan"]
[Black "Lopez Del Alamo, Antonio"]
[WhiteFideId "612073"]
[BlackFideId "2227339"]
[WhiteElo "2276"]
[BlackElo "2082"]
[Result "1/2-1/2"]
[Round "04"]
[TimeControl "180+1"]
[Date "2022.02.23"]
[WhiteClock "0:00:07"]
[BlackClock "0:00:06"]

1. d4 {[%clk 0:03:00]}  Nf6 {[%clk 0:02:58]} 2. Nc3 {[%clk 0:03:01]}  d5 {[%clk 0:02:56]} 3. Bf4 {[%clk 0:03:00]}  e6 {[%clk 0:02:55]} 4. Nb5 {[%clk 0:02:48]}  Na6 {[%clk 0:02:53]} 5. e3 {[%clk 0:02:46]}  c6 {[%clk 0:02:46]} 6. Nc3 {[%clk 0:02:44]}  Bd6 {[%clk 0:02:44]} 7. Bg5 {[%clk 0:02:36]}  Nc7 {[%clk 0:02:41]} 8. f4 {[%clk 0:02:35]}  h6 {[%clk 0:02:22]} 9. Bh4 {[%clk 0:02:34]}  g5 {[%clk 0:02:20]} 10. fxg5 {[%clk 0:02:33]}  Nh7 {[%clk 0:02:20]} 11. Nf3 {[%clk 0:02:30]}  Nxg5 {[%clk 0:02:16]} 12. Bxg5 {[%clk 0:02:27]}  hxg5 {[%clk 0:02:17]} 13. Bd3 {[%clk 0:02:27]}  g4 {[%clk 0:01:57]} 14. Ne5 {[%clk 0:02:23]}  Bxe5 {[%clk 0:01:53]} 15. dxe5 {[%clk 0:02:24]}  Qg5 {[%clk 0:01:53]} 16. Qe2 {[%clk 0:02:21]}  Bd7 {[%clk 0:01:48]} 17. O-O-O {[%clk 0:02:20]}  O-O-O {[%clk 0:01:43]} 18. Kb1 {[%clk 0:02:20]}  Rdg8 {[%clk 0:01:40]} 19. e4 {[%clk 0:02:12]}  d4 {[%clk 0:01:36]} 20. Na4 {[%clk 0:02:11]}  Qxe5 {[%clk 0:01:35]} 21. b3 {[%clk 0:02:10]}  c5 {[%clk 0:01:25]} 22. Nb2 {[%clk 0:02:07]}  Kb8 {[%clk 0:01:14]} 23. Nc4 {[%clk 0:02:06]}  Qg5 {[%clk 0:01:13]} 24. e5 {[%clk 0:02:06]}  Nd5 {[%clk 0:01:08]} 25. Qf2 {[%clk 0:01:50]}  Nc3+ {[%clk 0:01:03]} 26. Kb2 {[%clk 0:01:50]}  Nxd1+ {[%clk 0:01:03]} 27. Rxd1 {[%clk 0:01:51]}  Rxh2 {[%clk 0:01:01]} 28. Qxf7 {[%clk 0:01:48]}  Qg7 {[%clk 0:01:01]} 29. Qf2 {[%clk 0:01:45]}  Bc6 {[%clk 0:00:59]} 30. Na5 {[%clk 0:01:37]}  Bd5 {[%clk 0:00:57]} 31. Bf1 {[%clk 0:01:31]}  Qxe5 {[%clk 0:00:53]} 32. Re1 {[%clk 0:01:30]}  Qc7 {[%clk 0:00:50]} 33. Nc4 {[%clk 0:01:29]}  Bxc4 {[%clk 0:00:47]} 34. Bxc4 {[%clk 0:01:29]}  g3 {[%clk 0:00:36]} 35. Qf3 {[%clk 0:01:24]}  Qc6 {[%clk 0:00:34]} 36. Qf4+ {[%clk 0:01:23]}  Qc7 {[%clk 0:00:31]} 37. Qf3 {[%clk 0:01:21]}  a6 {[%clk 0:00:31]} 38. Rxe6 {[%clk 0:01:20]}  Rhh8 {[%clk 0:00:24]} 39. a4 {[%clk 0:01:13]}  Rf8 {[%clk 0:00:22]} 40. Qe4 {[%clk 0:01:13]}  Rf4 {[%clk 0:00:18]} 41. Qe1 {[%clk 0:01:06]}  Rd8 {[%clk 0:00:16]} 42. Qxg3 {[%clk 0:01:03]}  d3 {[%clk 0:00:16]} 43. Bxd3 {[%clk 0:00:59]}  Ka7 {[%clk 0:00:13]} 44. a5 {[%clk 0:00:55]}  Rdf8 {[%clk 0:00:12]} 45. Rb6 {[%clk 0:00:52]}  c4 {[%clk 0:00:12]} 46. Be2 {[%clk 0:00:48]}  c3+ {[%clk 0:00:11]} 47. Qxc3 {[%clk 0:00:47]}  Qxc3+ {[%clk 0:00:11]} 48. Kxc3 {[%clk 0:00:48]}  Rf2 {[%clk 0:00:10]} 49. Bf3 {[%clk 0:00:46]}  R2xf3+ {[%clk 0:00:10]} 50. gxf3 {[%clk 0:00:47]}  Rxf3+ {[%clk 0:00:10]} 51. Kb2 {[%clk 0:00:47]}  Rf5 {[%clk 0:00:10]} 52. b4 {[%clk 0:00:47]}  Rf4 {[%clk 0:00:11]} 53. c3 {[%clk 0:00:46]}  Rf5 {[%clk 0:00:11]} 54. Kb3 {[%clk 0:00:46]}  Rf4 {[%clk 0:00:10]} 55. Rh6 {[%clk 0:00:46]}  Rf5 {[%clk 0:00:10]} 56. Rh4 {[%clk 0:00:46]}  Rf3 {[%clk 0:00:10]} 57. Re4 {[%clk 0:00:46]}  Rf5 {[%clk 0:00:11]} 58. Kc4 {[%clk 0:00:46]}  Rf3 {[%clk 0:00:11]} 59. Kd4 {[%clk 0:00:45]}  Rf5 {[%clk 0:00:11]} 60. Rh4 {[%clk 0:00:44]}  Rg5 {[%clk 0:00:11]} 61. c4 {[%clk 0:00:42]}  Rf5 {[%clk 0:00:10]} 62. Re4 {[%clk 0:00:42]}  Rg5 {[%clk 0:00:10]} 63. Re5 {[%clk 0:00:42]}  Rg4+ {[%clk 0:00:09]} 64. Kc5 {[%clk 0:00:42]}  Rg6 {[%clk 0:00:09]} 65. b5 {[%clk 0:00:42]}  axb5 {[%clk 0:00:08]} 66. cxb5 {[%clk 0:00:43]}  b6+ {[%clk 0:00:09]} 67. axb6+ {[%clk 0:00:42]}  Kb7 {[%clk 0:00:09]} 68. Re7+ {[%clk 0:00:41]}  Kb8 {[%clk 0:00:09]} 69. Rh7 {[%clk 0:00:38]}  Rf6 {[%clk 0:00:09]} 70. b7 {[%clk 0:00:25]}  Rg6 {[%clk 0:00:09]} 71. Rd7 {[%clk 0:00:24]}  Rf6 {[%clk 0:00:09]} 72. Kb4 {[%clk 0:00:24]}  Rg6 {[%clk 0:00:07]} 73. Ka5 {[%clk 0:00:25]}  Rf6 {[%clk 0:00:07]} 74. Rh7 {[%clk 0:00:21]}  Rg6 {[%clk 0:00:07]} 75. b6 {[%clk 0:00:10]}  Rg1 {[%clk 0:00:06]} 76. Ka6 {[%clk 0:00:07]}  Ra1+ {[%clk 0:00:06]} 77. Kb5 {[%clk 0:00:07]}  Ra5+ {[%clk 0:00:06]} 78. Kc6 {[%clk 0:00:07]}  Rc5+ {[%clk 0:00:06]} 79. Kd6 {[%clk 0:00:07]}  Rd5+ {[%clk 0:00:06]} 80. Ke6 {[%clk 0:00:07]}  Re5+ {[%clk 0:00:06]} 81. Kxe5 {[%clk 0:00:07]} 1/2-1/2


[Site "https://www.chess.com"]

[Event "Titled Tuesday Blitz February 22 Late 2022"]
[White "Lenderman, Aleksandr"]
[Black "Sviridov, Valery"]
[WhiteFideId "2021285"]
[BlackFideId "4120680"]
[WhiteElo "2651"]
[BlackElo "2454"]
[Result "1/2-1/2"]
[Round "04"]
[TimeControl "180+1"]
[Date "2022.02.22"]
[WhiteClock "0:00:39"]
[BlackClock "0:00:33"]

1. b3 {[%clk 0:03:00]}  Nf6 {[%clk 0:02:59]} 2. Bb2 {[%clk 0:03:00]}  g6 {[%clk 0:02:59]} 3. g3 {[%clk 0:02:59]}  Bg7 {[%clk 0:02:59]} 4. Bg2 {[%clk 0:02:59]}  O-O {[%clk 0:02:59]} 5. Nf3 {[%clk 0:03:00]}  c5 {[%clk 0:02:58]} 6. O-O {[%clk 0:02:58]}  Nc6 {[%clk 0:02:59]} 7. c4 {[%clk 0:02:58]}  d6 {[%clk 0:02:58]} 8. d4 {[%clk 0:02:58]}  Bf5 {[%clk 0:02:57]} 9. dxc5 {[%clk 0:02:52]}  dxc5 {[%clk 0:02:56]} 10. Ne5 {[%clk 0:02:49]}  Nxe5 {[%clk 0:02:48]} 11. Bxe5 {[%clk 0:02:49]}  Qxd1 {[%clk 0:02:23]} 12. Rxd1 {[%clk 0:02:47]}  Rad8 {[%clk 0:02:24]} 13. Nc3 {[%clk 0:02:41]}  Bc8 {[%clk 0:02:09]} 14. Nb5 {[%clk 0:02:31]}  a6 {[%clk 0:02:07]} 15. Na7 {[%clk 0:02:31]}  Bg4 {[%clk 0:01:58]} 16. Bxb7 {[%clk 0:02:28]}  Bxe2 {[%clk 0:01:57]} 17. Rxd8 {[%clk 0:02:24]}  Rxd8 {[%clk 0:01:58]} 18. Nc6 {[%clk 0:02:25]}  Rd7 {[%clk 0:01:43]} 19. Bc8 {[%clk 0:02:19]}  Rd2 {[%clk 0:01:43]} 20. Bxa6 {[%clk 0:01:53]}  Bf3 {[%clk 0:01:20]} 21. Nxe7+ {[%clk 0:01:51]}  Kf8 {[%clk 0:01:20]} 22. Nd5 {[%clk 0:01:50]}  Ne4 {[%clk 0:01:17]} 23. Bxg7+ {[%clk 0:01:40]}  Kxg7 {[%clk 0:01:18]} 24. Rf1 {[%clk 0:01:38]}  Rxa2 {[%clk 0:01:16]} 25. Bb7 {[%clk 0:01:21]}  Nd2 {[%clk 0:01:16]} 26. Re1 {[%clk 0:01:20]}  Bxd5 {[%clk 0:01:15]} 27. Bxd5 {[%clk 0:01:18]}  Kf8 {[%clk 0:01:03]} 28. Re3 {[%clk 0:01:11]}  Rb2 {[%clk 0:01:03]} 29. Re2 {[%clk 0:00:57]}  Rb1+ {[%clk 0:01:03]} 30. Kg2 {[%clk 0:00:57]}  Nxb3 {[%clk 0:01:03]} 31. Ra2 {[%clk 0:00:56]}  Ra1 {[%clk 0:00:59]} 32. Rb2 {[%clk 0:00:56]}  Ra3 {[%clk 0:00:56]} 33. h4 {[%clk 0:00:53]}  h6 {[%clk 0:00:54]} 34. Kh3 {[%clk 0:00:50]}  Kg7 {[%clk 0:00:54]} 35. f3 {[%clk 0:00:49]}  f5 {[%clk 0:00:52]} 36. Re2 {[%clk 0:00:46]}  Nd4 {[%clk 0:00:41]} 37. Re7+ {[%clk 0:00:46]}  Kh8 {[%clk 0:00:42]} 38. f4 {[%clk 0:00:41]}  h5 {[%clk 0:00:38]} 39. Kg2 {[%clk 0:00:37]}  Ra2+ {[%clk 0:00:37]} 40. Kf1 {[%clk 0:00:37]}  Ra3 {[%clk 0:00:36]} 41. Kf2 {[%clk 0:00:38]}  Ra2+ {[%clk 0:00:35]} 42. Kf1 {[%clk 0:00:38]}  Ra3 {[%clk 0:00:36]} 43. Kf2 {[%clk 0:00:38]}  Rb3 {[%clk 0:00:34]} 44. Re8+ {[%clk 0:00:37]}  Kg7 {[%clk 0:00:33]} 45. Re7+ {[%clk 0:00:38]}  Kh8 {[%clk 0:00:34]} 46. Re8+ {[%clk 0:00:38]}  Kg7 {[%clk 0:00:32]} 47. Re7+ {[%clk 0:00:39]}  Kh8 {[%clk 0:00:33]} 1/2-1/2


[Site "https://www.chess.com"]

[Event "Titled Tuesday Blitz February 22 Late 2022"]
[White "Lewicki, Miroslaw"]
[Black "Araujo Filho, Luiz Antonio Coel"]
[WhiteFideId "1113380"]
[BlackFideId "2130661"]
[WhiteElo "2283"]
[BlackElo "2208"]
[Result "0-1"]
[Round "04"]
[TimeControl "180+1"]
[Date "2022.02.23"]
[WhiteClock "0:00:09"]
[BlackClock "0:00:02"]

1. g3 {[%clk 0:02:53]}  f5 {[%clk 0:02:58]} 2. Bg2 {[%clk 0:02:54]}  Nf6 {[%clk 0:02:53]} 3. Nf3 {[%clk 0:02:55]}  g6 {[%clk 0:02:53]} 4. O-O {[%clk 0:02:56]}  Bg7 {[%clk 0:02:53]} 5. c4 {[%clk 0:02:56]}  O-O {[%clk 0:02:53]} 6. d4 {[%clk 0:02:57]}  d6 {[%clk 0:02:54]} 7. Nc3 {[%clk 0:02:57]}  Nc6 {[%clk 0:02:54]} 8. Re1 {[%clk 0:02:58]}  e5 {[%clk 0:02:54]} 9. d5 {[%clk 0:02:58]}  Ne7 {[%clk 0:02:53]} 10. b3 {[%clk 0:02:57]}  h6 {[%clk 0:02:51]} 11. Bb2 {[%clk 0:02:57]}  g5 {[%clk 0:02:50]} 12. Qc2 {[%clk 0:02:55]}  f4 {[%clk 0:02:46]} 13. Rad1 {[%clk 0:02:50]}  Bf5 {[%clk 0:02:42]} 14. Qc1 {[%clk 0:02:49]}  Qd7 {[%clk 0:02:38]} 15. c5 {[%clk 0:02:48]}  Bh3 {[%clk 0:02:34]} 16. c6 {[%clk 0:02:47]}  bxc6 {[%clk 0:02:33]} 17. dxc6 {[%clk 0:02:47]}  Qc8 {[%clk 0:02:34]} 18. Bh1 {[%clk 0:02:27]}  Ng6 {[%clk 0:01:27]} 19. e4 {[%clk 0:02:00]}  fxg3 {[%clk 0:01:16]} 20. fxg3 {[%clk 0:01:59]}  Bg4 {[%clk 0:01:07]} 21. Rf1 {[%clk 0:01:56]}  Qa6 {[%clk 0:01:02]} 22. Nd5 {[%clk 0:01:52]}  Nxe4 {[%clk 0:00:56]} 23. Qc2 {[%clk 0:01:36]}  Bf5 {[%clk 0:00:41]} 24. g4 {[%clk 0:01:35]}  Bxg4 {[%clk 0:00:26]} 25. Qxe4 {[%clk 0:01:35]}  Nf4 {[%clk 0:00:26]} 26. Ne7+ {[%clk 0:00:53]}  Kh8 {[%clk 0:00:23]} 27. Nxg5 {[%clk 0:00:48]}  hxg5 {[%clk 0:00:12]} 28. Rxf4 {[%clk 0:00:48]}  Rxf4 {[%clk 0:00:10]} 29. Ng6+ {[%clk 0:00:47]}  Kg8 {[%clk 0:00:10]} 30. Nxf4 {[%clk 0:00:33]}  gxf4 {[%clk 0:00:11]} 31. Bf3 {[%clk 0:00:30]}  Bxf3 {[%clk 0:00:08]} 32. Qxf3 {[%clk 0:00:30]}  Rf8 {[%clk 0:00:08]} 33. Rd2 {[%clk 0:00:27]}  Qxa2 {[%clk 0:00:05]} 34. Qd5+ {[%clk 0:00:23]}  Kh8 {[%clk 0:00:04]} 35. Bxe5 {[%clk 0:00:16]}  Qb1+ {[%clk 0:00:04]} 36. Rd1 {[%clk 0:00:17]}  Qg6+ {[%clk 0:00:04]} 37. Kh1 {[%clk 0:00:14]}  dxe5 {[%clk 0:00:04]} 38. Rg1 {[%clk 0:00:15]}  Qd6 {[%clk 0:00:04]} 39. Qe4 {[%clk 0:00:15]}  Rf6 {[%clk 0:00:03]} 40. Qf3 {[%clk 0:00:15]}  Rh6 {[%clk 0:00:03]} 41. Rd1 {[%clk 0:00:14]}  Qf6 {[%clk 0:00:02]} 42. Rd7 {[%clk 0:00:14]}  Qh4 {[%clk 0:00:02]} 43. Qe2 {[%clk 0:00:11]}  f3 {[%clk 0:00:02]} 44. Qd2 {[%clk 0:00:12]}  f2 {[%clk 0:00:02]} 45. Rd8+ {[%clk 0:00:12]}  Kh7 {[%clk 0:00:02]} 46. Qd3+ {[%clk 0:00:12]}  Rg6 {[%clk 0:00:02]} 47. Rd7 {[%clk 0:00:09]}  f1=Q+ {[%clk 0:00:02]} 48. Qxf1 {[%clk 0:00:09]}  Qe4+ {[%clk 0:00:02]} 0-1


[Site "https://www.chess.com"]

[Event "Titled Tuesday Blitz February 22 Late 2022"]
[White "Lin, Dachey"]
[Black "Tan, Jun Ying"]
[WhiteFideId "2029650"]
[BlackFideId "5710413"]
[WhiteElo "2726"]
[BlackElo "1827"]
[Result "0-1"]
[Round "04"]
[TimeControl "180+1"]
[Date "2022.02.23"]
[WhiteClock "0:00:59"]
[BlackClock "0:00:03"]

1. g4 {[%clk 0:03:00]}  h5 {[%clk 0:02:56]} 2. g5 {[%clk 0:03:01]}  e5 {[%clk 0:02:54]} 3. d4 {[%clk 0:03:01]}  Nc6 {[%clk 0:02:46]} 4. d5 {[%clk 0:03:01]}  Nce7 {[%clk 0:02:46]} 5. e4 {[%clk 0:02:58]}  Ng6 {[%clk 0:02:46]} 6. h4 {[%clk 0:02:58]}  Bc5 {[%clk 0:02:45]} 7. Ne2 {[%clk 0:02:51]}  d6 {[%clk 0:02:44]} 8. Ng3 {[%clk 0:02:50]}  Bg4 {[%clk 0:02:33]} 9. Be2 {[%clk 0:02:50]}  Qd7 {[%clk 0:02:25]} 10. Nc3 {[%clk 0:01:47]}  O-O-O {[%clk 0:02:18]} 11. Nxh5 {[%clk 0:01:36]}  Bxe2 {[%clk 0:02:07]} 12. Qxe2 {[%clk 0:01:37]}  f5 {[%clk 0:01:40]} 13. exf5 {[%clk 0:01:29]}  Qxf5 {[%clk 0:01:40]} 14. Nxg7 {[%clk 0:01:29]}  Qf7 {[%clk 0:01:30]} 15. Ne6 {[%clk 0:01:22]}  Nf4 {[%clk 0:01:26]} 16. Bxf4 {[%clk 0:01:21]}  exf4 {[%clk 0:01:16]} 17. Nxd8 {[%clk 0:01:20]}  Kxd8 {[%clk 0:01:16]} 18. O-O-O {[%clk 0:01:20]}  Ne7 {[%clk 0:01:13]} 19. Kb1 {[%clk 0:01:18]}  Nf5 {[%clk 0:01:08]} 20. h5 {[%clk 0:01:15]}  Re8 {[%clk 0:00:57]} 21. Qg4 {[%clk 0:01:14]}  Bxf2 {[%clk 0:00:51]} 22. Qxf4 {[%clk 0:01:09]}  Be3 {[%clk 0:00:48]} 23. Qg4 {[%clk 0:01:09]}  Re5 {[%clk 0:00:28]} 24. h6 {[%clk 0:01:06]}  Qg6 {[%clk 0:00:21]} 25. h7 {[%clk 0:01:06]}  Re8 {[%clk 0:00:17]} 26. h8=Q {[%clk 0:01:07]}  Rxh8 {[%clk 0:00:17]} 27. Rxh8+ {[%clk 0:01:08]}  Ke7 {[%clk 0:00:18]} 28. Qe4+ {[%clk 0:01:07]}  Kd7 {[%clk 0:00:17]} 29. Rf1 {[%clk 0:01:03]}  Ne7 {[%clk 0:00:06]} 30. Rff8 {[%clk 0:00:59]}  c6 {[%clk 0:00:03]} 0-1


[Site "https://www.chess.com"]